[Event "*** Titled Tuesday Blitz"]
[Site "Chess.com"]
[Date "2019.09.03"]
[Round "6"]
[White "Witik"]
[Black "albano87"]
[Result "1-0"]
[WhiteElo "2552"]
[BlackElo "2082"]
[TimeControl "180+2"]
[EndTime "16:16:52 PDT"]
[Termination "Witik won by resignation"]

1. d4 {[%clk 0:03:01.9]} 1... Nf6 {[%clk 0:03:00.5]} 2. c4 {[%clk 0:03:00.8]}
2... e6 {[%clk 0:03:02.1]} 3. Nf3 {[%clk 0:03:01.5]} 3... b6 {[%clk 0:03:03.1]}
4. g3 {[%clk 0:03:02.4]} 4... Bb7 {[%clk 0:03:02.1]} 5. Bg2 {[%clk 0:03:03.5]}
5... c5 {[%clk 0:03:02.4]} 6. d5 {[%clk 0:02:55.9]} 6... exd5 {[%clk 0:03:03.3]}
7. Nh4 {[%clk 0:02:53.5]} 7... g6 {[%clk 0:03:04.5]} 8. Nc3 {[%clk 0:02:44.8]}
8... Bg7 {[%clk 0:03:04.8]} 9. Bg5 {[%clk 0:02:00.9]} 9... O-O {[%clk
0:02:54.3]} 10. Nxd5 {[%clk 0:01:56.8]} 10... Bxd5 {[%clk 0:02:40.5]} 11. Bxd5
{[%clk 0:01:54.7]} 11... Nc6 {[%clk 0:02:42]} 12. O-O {[%clk 0:01:48.6]} 12...
Qe7 {[%clk 0:02:38.5]} 13. e3 {[%clk 0:01:34.1]} 13... Rad8 {[%clk 0:02:38]} 14.
Nf3 {[%clk 0:01:20.1]} 14... Bh6 {[%clk 0:02:36.3]} 15. Bxh6 {[%clk 0:01:19.6]}
15... Rfe8 {[%clk 0:02:35.1]} 16. Bg5 {[%clk 0:01:15.4]} 16... Kg7 {[%clk
0:02:36.4]} 17. Kg2 {[%clk 0:01:04.9]} 17... h6 {[%clk 0:02:37.3]} 18. Bxf6+
{[%clk 0:01:04.1]} 18... Qxf6 {[%clk 0:02:38.2]} 19. Qd2 {[%clk 0:01:02.5]}
19... Nb4 {[%clk 0:02:36.6]} 20. e4 {[%clk 0:00:54.9]} 20... h5 {[%clk
0:02:34.5]} 21. h4 {[%clk 0:00:51.9]} 21... d6 {[%clk 0:02:24.4]} 22. Rfe1
{[%clk 0:00:49.1]} 22... Re7 {[%clk 0:02:25.2]} 23. a3 {[%clk 0:00:48.7]} 23...
Na6 {[%clk 0:02:26.1]} 24. Qg5 {[%clk 0:00:40.4]} 24... Nc7 {[%clk 0:02:23.6]}
25. Rad1 {[%clk 0:00:38.7]} 25... Rde8 {[%clk 0:02:24.5]} 26. Bc6 {[%clk
0:00:37.2]} 26... Rd8 {[%clk 0:02:23.7]} 27. Qxf6+ {[%clk 0:00:36.3]} 27... Kxf6
{[%clk 0:02:24.9]} 28. e5+ {[%clk 0:00:38.2]} 1-0

[Event "*** Titled Tuesday Blitz"]
[Site "Chess.com"]
[Date "2019.09.03"]
[Round "6"]
[White "promen1999"]
[Black "Sosat98"]
[Result "1-0"]
[WhiteElo "2750"]
[BlackElo "2613"]
[TimeControl "180+2"]
[EndTime "16:16:53 PDT"]
[Termination "promen1999 won by resignation"]

1. d4 {[%clk 0:03:01.9]} 1... Nf6 {[%clk 0:02:59.9]} 2. c4 {[%clk 0:03:02.5]}
2... e6 {[%clk 0:03:00.1]} 3. Nf3 {[%clk 0:03:01.8]} 3... b6 {[%clk 0:02:58.9]}
4. g3 {[%clk 0:03:00.9]} 4... Bb7 {[%clk 0:03:00.3]} 5. Bg2 {[%clk 0:03:02.1]}
5... g6 {[%clk 0:02:59.1]} 6. Nc3 {[%clk 0:03:01.3]} 6... Bg7 {[%clk 0:02:58.2]}
7. O-O {[%clk 0:03:00.9]} 7... O-O {[%clk 0:02:59.7]} 8. d5 {[%clk 0:03:01.7]}
8... exd5 {[%clk 0:03:00.1]} 9. cxd5 {[%clk 0:03:02.5]} 9... Re8 {[%clk
0:03:01.6]} 10. Bf4 {[%clk 0:03:01.9]} 10... Na6 {[%clk 0:03:00.9]} 11. Rc1
{[%clk 0:03:01.1]} 11... c5 {[%clk 0:02:58.1]} 12. a3 {[%clk 0:02:41.4]} 12...
d6 {[%clk 0:02:52.5]} 13. Re1 {[%clk 0:02:32.3]} 13... Ne4 {[%clk 0:02:52.4]}
14. Nxe4 {[%clk 0:02:17.9]} 14... Rxe4 {[%clk 0:02:53.5]} 15. Nd2 {[%clk
0:02:19.6]} 15... Rxf4 {[%clk 0:02:37.2]} 16. gxf4 {[%clk 0:02:21.5]} 16... Nc7
{[%clk 0:02:38.1]} 17. Nc4 {[%clk 0:02:17.9]} 17... Ba6 {[%clk 0:02:30.6]} 18.
b3 {[%clk 0:02:13.1]} 18... b5 {[%clk 0:02:27.3]} 19. Na5 {[%clk 0:02:11.2]}
19... Bb2 {[%clk 0:02:27.2]} 20. Rc2 {[%clk 0:02:11]} 20... Qf6 {[%clk
0:02:25.6]} 21. e4 {[%clk 0:02:00.2]} 21... Bxa3 {[%clk 0:02:23.8]} 22. e5
{[%clk 0:01:47.2]} 22... Qxf4 {[%clk 0:02:23.9]} 23. Nc6 {[%clk 0:01:39.3]}
23... c4 {[%clk 0:02:19]} 24. Re4 {[%clk 0:01:31]} 24... Qf5 {[%clk 0:02:14.8]}
25. Ne7+ {[%clk 0:01:31.3]} 25... Kf8 {[%clk 0:02:07]} 26. Nxf5 {[%clk
0:01:33.2]} 26... gxf5 {[%clk 0:02:08.4]} 27. Rh4 {[%clk 0:01:25.5]} 27... dxe5
{[%clk 0:02:08.6]} 28. d6 {[%clk 0:01:25.1]} 28... Rd8 {[%clk 0:02:09.6]} 29.
Rxh7 {[%clk 0:01:12.1]} 29... Rxd6 {[%clk 0:02:10.2]} 30. Qh5 {[%clk 0:01:12.7]}
30... Rf6 {[%clk 0:02:11.6]} 31. Qg5 {[%clk 0:01:02.4]} 31... Ke7 {[%clk
0:02:12.9]} 32. Rh6 {[%clk 0:01:01.3]} 32... Ne8 {[%clk 0:02:12.7]} 33. bxc4
{[%clk 0:01:00.2]} 33... b4 {[%clk 0:02:11.7]} 34. Re2 {[%clk 0:01:01.2]} 34...
b3 {[%clk 0:02:11.1]} 35. Rxf6 {[%clk 0:01:01.1]} 1-0

[Event "*** Titled Tuesday Blitz"]
[Site "Chess.com"]
[Date "2019.09.03"]
[Round "6"]
[White "x-6099009240"]
[Black "NicoChasin"]
[Result "0-1"]
[WhiteElo "2337"]
[BlackElo "2483"]
[TimeControl "180+2"]
[EndTime "16:16:53 PDT"]
[Termination "NicoChasin won on time"]

1. e4 {[%clk 0:03:01.9]} 1... c5 {[%clk 0:03:00.5]} 2. Nf3 {[%clk 0:02:53.9]}
2... e6 {[%clk 0:02:58.7]} 3. d4 {[%clk 0:02:55.8]} 3... cxd4 {[%clk 0:02:59.5]}
4. Nxd4 {[%clk 0:02:57.7]} 4... Nc6 {[%clk 0:03:00.8]} 5. Nc3 {[%clk 0:02:59.2]}
5... Qc7 {[%clk 0:02:40]} 6. Be3 {[%clk 0:02:21.5]} 6... a6 {[%clk 0:02:39.9]}
7. Qd2 {[%clk 0:02:23.4]} 7... Nf6 {[%clk 0:02:36.2]} 8. O-O-O {[%clk
0:02:25.3]} 8... Bb4 {[%clk 0:02:34.9]} 9. f3 {[%clk 0:01:10.3]} 9... Ne7 {[%clk
0:02:34.6]} 10. g4 {[%clk 0:00:58.9]} 10... d5 {[%clk 0:02:30.8]} 11. g5 {[%clk
0:00:54.3]} 11... Nd7 {[%clk 0:02:31.5]} 12. a3 {[%clk 0:00:32.3]} 12... Bxc3
{[%clk 0:02:31.3]} 13. Qxc3 {[%clk 0:00:34.2]} 13... Qxc3 {[%clk 0:02:31.9]} 14.
bxc3 {[%clk 0:00:36.1]} 14... dxe4 {[%clk 0:02:33.1]} 15. fxe4 {[%clk
0:00:30.3]} 15... e5 {[%clk 0:02:28.1]} 16. Nf5 {[%clk 0:00:03.1]} 16... Nxf5
{[%clk 0:02:21.3]} 17. exf5 {[%clk 0:00:05]} 17... Nb8 {[%clk 0:02:21.2]} 18.
Bd3 {[%clk 0:00:05.9]} 18... Nc6 {[%clk 0:02:20.4]} 19. h4 {[%clk 0:00:03.8]}
19... f6 {[%clk 0:02:20.5]} 20. Rde1 {[%clk 0:00:05.3]} 20... Ne7 {[%clk
0:02:21.1]} 21. gxf6 {[%clk 0:00:04]} 21... gxf6 {[%clk 0:02:21.8]} 22. Rhf1
{[%clk 0:00:05.9]} 22... b5 {[%clk 0:02:21.1]} 0-1

[Event "*** Titled Tuesday Blitz"]
[Site "Chess.com"]
[Date "2019.09.03"]
[Round "6"]
[White "Morscas"]
[Black "12teen"]
[Result "0-1"]
[WhiteElo "2274"]
[BlackElo "2749"]
[TimeControl "180+2"]
[EndTime "16:17:08 PDT"]
[Termination "12teen won by checkmate"]

1. e4 {[%clk 0:03:01.9]} 1... a6 {[%clk 0:02:59.4]} 2. Nf3 {[%clk 0:02:58.2]}
2... b5 {[%clk 0:03:00.9]} 3. c3 {[%clk 0:02:57.8]} 3... Bb7 {[%clk 0:03:02.4]}
4. Bd3 {[%clk 0:02:58.6]} 4... e6 {[%clk 0:03:02.6]} 5. O-O {[%clk 0:02:59.7]}
5... Nf6 {[%clk 0:03:03.4]} 6. Re1 {[%clk 0:03:00.8]} 6... d5 {[%clk 0:03:04.5]}
7. e5 {[%clk 0:03:00.7]} 7... Nfd7 {[%clk 0:03:05.9]} 8. a3 {[%clk 0:02:56.4]}
8... c5 {[%clk 0:03:06.8]} 9. Bc2 {[%clk 0:02:57]} 9... Nc6 {[%clk 0:03:03.3]}
10. d4 {[%clk 0:02:57.8]} 10... Be7 {[%clk 0:03:04.6]} 11. Nbd2 {[%clk
0:02:55.7]} 11... g5 {[%clk 0:03:04.8]} 12. dxc5 {[%clk 0:02:48]} 12... Bxc5
{[%clk 0:03:00.8]} 13. Nb3 {[%clk 0:02:47.5]} 13... Be7 {[%clk 0:03:01.3]} 14.
Nbd4 {[%clk 0:02:44.1]} 14... h5 {[%clk 0:02:51.3]} 15. Nxc6 {[%clk 0:02:44.5]}
15... Bxc6 {[%clk 0:02:53.2]} 16. Nd4 {[%clk 0:02:45.6]} 16... Bb7 {[%clk
0:02:52.9]} 17. Qf3 {[%clk 0:02:43.4]} 17... g4 {[%clk 0:02:49.9]} 18. Qf4
{[%clk 0:02:41]} 18... Nb6 {[%clk 0:02:43.8]} 19. Kh1 {[%clk 0:02:32.2]} 19...
Qd7 {[%clk 0:02:39.5]} 20. Rf1 {[%clk 0:02:27.3]} 20... Bc5 {[%clk 0:02:13.4]}
21. f3 {[%clk 0:02:26.2]} 21... O-O-O {[%clk 0:01:54.7]} 22. fxg4 {[%clk
0:02:22]} 22... hxg4 {[%clk 0:01:50.8]} 23. Qxf7 {[%clk 0:02:20.8]} 23... g3
{[%clk 0:01:32.6]} 24. h3 {[%clk 0:02:16.3]} 24... Rdf8 {[%clk 0:01:22.8]} 25.
Qxd7+ {[%clk 0:02:14.6]} 25... Kxd7 {[%clk 0:01:09]} 26. Bf4 {[%clk 0:02:13.7]}
26... Nc4 {[%clk 0:01:08.4]} 27. a4 {[%clk 0:01:59.3]} 27... b4 {[%clk 0:01:04]}
28. Nb3 {[%clk 0:01:46.7]} 28... Bf2 {[%clk 0:01:04.4]} 29. cxb4 {[%clk
0:01:45.2]} 29... Rxh3+ {[%clk 0:00:58.4]} 30. gxh3 {[%clk 0:01:42.4]} 30... d4+
{[%clk 0:01:00]} 31. Be4 {[%clk 0:01:41.4]} 31... Bxe4# {[%clk 0:01:01.3]} 0-1

[Event "*** Titled Tuesday Blitz"]
[Site "Chess.com"]
[Date "2019.09.03"]
[Round "6"]
[White "saraswathii"]
[Black "vova-79"]
[Result "0-1"]
[WhiteElo "2284"]
[BlackElo "2395"]
[TimeControl "180+2"]
[EndTime "16:17:09 PDT"]
[Termination "vova-79 won by resignation"]

1. e4 {[%clk 0:03:01.8]} 1... e6 {[%clk 0:02:59.8]} 2. d3 {[%clk 0:03:02.6]}
2... d5 {[%clk 0:03:00.3]} 3. Nd2 {[%clk 0:03:04.2]} 3... Nf6 {[%clk 0:03:00.1]}
4. Ngf3 {[%clk 0:03:05.1]} 4... c5 {[%clk 0:02:53.5]} 5. g3 {[%clk 0:03:05.6]}
5... g6 {[%clk 0:02:54.4]} 6. Bg2 {[%clk 0:03:06.1]} 6... Bg7 {[%clk 0:02:55.5]}
7. O-O {[%clk 0:03:07]} 7... O-O {[%clk 0:02:55]} 8. Qe2 {[%clk 0:03:07.2]} 8...
Nc6 {[%clk 0:02:54.5]} 9. c3 {[%clk 0:03:06.1]} 9... a5 {[%clk 0:02:53.2]} 10.
Re1 {[%clk 0:03:06.7]} 10... b6 {[%clk 0:02:45.9]} 11. Nf1 {[%clk 0:03:06.8]}
11... dxe4 {[%clk 0:02:43.3]} 12. dxe4 {[%clk 0:03:07.1]} 12... Ba6 {[%clk
0:02:44.4]} 13. c4 {[%clk 0:03:04.6]} 13... Ng4 {[%clk 0:02:30.1]} 14. Ne3
{[%clk 0:02:52]} 14... Nge5 {[%clk 0:02:22.2]} 15. Nxe5 {[%clk 0:02:50.9]} 15...
Bxe5 {[%clk 0:02:22.7]} 16. f4 {[%clk 0:02:48.1]} 16... Nd4 {[%clk 0:02:21.7]}
17. Qf2 {[%clk 0:02:47.1]} 17... Bg7 {[%clk 0:02:18.7]} 18. Bd2 {[%clk
0:02:46.2]} 18... Qc7 {[%clk 0:02:13.3]} 19. Bc3 {[%clk 0:02:45.8]} 19... Rad8
{[%clk 0:02:13.3]} 20. Rad1 {[%clk 0:02:44.7]} 20... Rd7 {[%clk 0:02:12.5]} 21.
e5 {[%clk 0:02:41.9]} 21... Rfd8 {[%clk 0:02:10.2]} 22. b3 {[%clk 0:02:37.8]}
22... Bb7 {[%clk 0:02:07.7]} 23. Ng4 {[%clk 0:02:35.5]} 23... Qb8 {[%clk
0:01:29.3]} 24. Rd2 {[%clk 0:02:22.2]} 24... Qa8 {[%clk 0:01:25.7]} 25. Red1
{[%clk 0:02:18.2]} 25... Bxg2 {[%clk 0:01:20.7]} 26. Bxd4 {[%clk 0:02:03.7]}
26... Bf3 {[%clk 0:01:11.3]} 27. Nf6+ {[%clk 0:01:59.9]} 27... Bxf6 {[%clk
0:01:09]} 28. exf6 {[%clk 0:01:59.2]} 28... Rxd4 {[%clk 0:01:03.4]} 29. Rxd4
{[%clk 0:01:52.9]} 29... Bxd1 {[%clk 0:01:02.7]} 0-1

[Event "*** Titled Tuesday Blitz"]
[Site "Chess.com"]
[Date "2019.09.03"]
[Round "6"]
[White "jorquerino"]
[Black "KL31"]
[Result "0-1"]
[WhiteElo "2312"]
[BlackElo "2523"]
[TimeControl "180+2"]
[EndTime "16:17:14 PDT"]
[Termination "KL31 won on time"]

1. e4 {[%clk 0:03:01.9]} 1... e6 {[%clk 0:03:01.1]} 2. Qe2 {[%clk 0:03:00.3]}
2... c5 {[%clk 0:03:00.9]} 3. d3 {[%clk 0:02:59.3]} 3... Nc6 {[%clk 0:03:02.3]}
4. Nf3 {[%clk 0:02:59.7]} 4... g6 {[%clk 0:03:03.6]} 5. g3 {[%clk 0:03:00.2]}
5... Bg7 {[%clk 0:03:05]} 6. Bg2 {[%clk 0:03:01.2]} 6... Nge7 {[%clk 0:03:06.5]}
7. O-O {[%clk 0:03:01.3]} 7... d6 {[%clk 0:03:01.4]} 8. c3 {[%clk 0:03:00.6]}
8... e5 {[%clk 0:03:02]} 9. a3 {[%clk 0:02:24.8]} 9... O-O {[%clk 0:03:01.7]}
10. b4 {[%clk 0:02:25.2]} 10... b6 {[%clk 0:03:02.8]} 11. b5 {[%clk 0:02:09.4]}
11... Na5 {[%clk 0:03:00.4]} 12. Qc2 {[%clk 0:01:45.2]} 12... Bd7 {[%clk
0:02:58.4]} 13. a4 {[%clk 0:01:42.8]} 13... a6 {[%clk 0:02:58.9]} 14. Na3 {[%clk
0:01:39.1]} 14... h6 {[%clk 0:02:35.4]} 15. Ne1 {[%clk 0:01:30.9]} 15... Nb7
{[%clk 0:02:19.5]} 16. Bd2 {[%clk 0:01:15.5]} 16... Qc7 {[%clk 0:02:17.3]} 17.
f4 {[%clk 0:01:09.2]} 17... axb5 {[%clk 0:02:15.3]} 18. axb5 {[%clk 0:01:05.8]}
18... Ra7 {[%clk 0:02:00.2]} 19. Qb3 {[%clk 0:00:52.8]} 19... Rfa8 {[%clk
0:01:55.4]} 20. Nac2 {[%clk 0:00:52.4]} 20... Rxa1 {[%clk 0:01:53.9]} 21. Nxa1
{[%clk 0:00:45.7]} 21... Rxa1 {[%clk 0:01:54.2]} 0-1

[Event "*** Titled Tuesday Blitz"]
[Site "Chess.com"]
[Date "2019.09.03"]
[Round "6"]
[White "ferdipy"]
[Black "Al_Shima"]
[Result "1-0"]
[WhiteElo "2159"]
[BlackElo "2436"]
[TimeControl "180+2"]
[EndTime "16:17:21 PDT"]
[Termination "ferdipy won by resignation"]

1. d4 {[%clk 0:03:01.9]} 1... Nf6 {[%clk 0:03:00.2]} 2. c4 {[%clk 0:03:02.6]}
2... e6 {[%clk 0:03:01.1]} 3. Nc3 {[%clk 0:03:03.1]} 3... Bb4 {[%clk 0:03:01.6]}
4. Qc2 {[%clk 0:03:04.7]} 4... O-O {[%clk 0:03:01.5]} 5. a3 {[%clk 0:03:04.2]}
5... Bxc3+ {[%clk 0:03:01.4]} 6. Qxc3 {[%clk 0:03:05.6]} 6... d5 {[%clk
0:03:01.9]} 7. Bg5 {[%clk 0:02:57.2]} 7... c6 {[%clk 0:03:00.5]} 8. e3 {[%clk
0:02:50.7]} 8... Nbd7 {[%clk 0:02:58.2]} 9. Nf3 {[%clk 0:02:41.1]} 9... Re8
{[%clk 0:02:55.8]} 10. c5 {[%clk 0:02:34.5]} 10... Qc7 {[%clk 0:02:56.2]} 11.
Bd3 {[%clk 0:02:22.3]} 11... Ne4 {[%clk 0:02:48.5]} 12. Qc2 {[%clk 0:02:18.9]}
12... f5 {[%clk 0:02:48.1]} 13. Bf4 {[%clk 0:02:17.3]} 13... Qd8 {[%clk
0:02:47.2]} 14. Ne5 {[%clk 0:02:14.6]} 14... g5 {[%clk 0:02:44.1]} 15. Bg3
{[%clk 0:02:09.2]} 15... Nxg3 {[%clk 0:02:42.2]} 16. hxg3 {[%clk 0:02:08.9]}
16... Nxe5 {[%clk 0:02:43.4]} 17. dxe5 {[%clk 0:02:10.2]} 17... d4 {[%clk
0:02:27.6]} 18. O-O-O {[%clk 0:02:06.6]} 18... dxe3 {[%clk 0:02:20.5]} 19. Bxf5
{[%clk 0:02:05.9]} 19... exf5 {[%clk 0:02:19.1]} 20. Rxd8 {[%clk 0:02:05.8]}
20... Rxd8 {[%clk 0:02:21]} 21. Qc4+ {[%clk 0:01:58.4]} 21... Rd5 {[%clk
0:02:19.9]} 22. fxe3 {[%clk 0:01:51.8]} 22... Be6 {[%clk 0:02:20.3]} 23. Qe2
{[%clk 0:01:50.1]} 23... Rxc5+ {[%clk 0:02:06.3]} 24. Kb1 {[%clk 0:01:50.8]}
24... g4 {[%clk 0:02:06.2]} 25. Qf2 {[%clk 0:01:38.1]} 25... Rf8 {[%clk
0:00:49.2]} 26. Qf4 {[%clk 0:01:34]} 26... Kh8 {[%clk 0:00:49.2]} 27. Qh6 {[%clk
0:01:31]} 1-0

[Event "*** Titled Tuesday Blitz"]
[Site "Chess.com"]
[Date "2019.09.03"]
[Round "6"]
[White "temus_galaktionov"]
[Black "GasconJR"]
[Result "1-0"]
[WhiteElo "2610"]
[BlackElo "2480"]
[TimeControl "180+2"]
[EndTime "16:17:22 PDT"]
[Termination "temus_galaktionov won on time"]

1. d4 {[%clk 0:03:01.9]} 1... Nf6 {[%clk 0:02:59.8]} 2. Nf3 {[%clk 0:03:01.2]}
2... g6 {[%clk 0:03:00.5]} 3. c4 {[%clk 0:03:01.4]} 3... Bg7 {[%clk 0:03:02.4]}
4. Nc3 {[%clk 0:03:02.8]} 4... O-O {[%clk 0:03:03.7]} 5. e4 {[%clk 0:03:03.5]}
5... d6 {[%clk 0:03:05.3]} 6. Be2 {[%clk 0:03:02.7]} 6... e5 {[%clk 0:03:07]} 7.
O-O {[%clk 0:03:01.1]} 7... Nc6 {[%clk 0:03:08.5]} 8. d5 {[%clk 0:03:00.6]} 8...
Ne7 {[%clk 0:03:10.1]} 9. Ne1 {[%clk 0:03:02.4]} 9... Nd7 {[%clk 0:03:11.2]} 10.
f3 {[%clk 0:03:04.3]} 10... f5 {[%clk 0:03:12.4]} 11. g4 {[%clk 0:03:06.1]}
11... Kh8 {[%clk 0:03:08.5]} 12. Nd3 {[%clk 0:03:05.8]} 12... Ng8 {[%clk
0:03:09]} 13. Be3 {[%clk 0:03:05.3]} 13... Bh6 {[%clk 0:02:56.7]} 14. Bxh6
{[%clk 0:03:05]} 14... Nxh6 {[%clk 0:02:57.4]} 15. Qd2 {[%clk 0:03:06.2]} 15...
Nf7 {[%clk 0:02:30.9]} 16. Kg2 {[%clk 0:02:58.1]} 16... Nf6 {[%clk 0:02:26.8]}
17. h3 {[%clk 0:02:57.6]} 17... Ng8 {[%clk 0:02:00.9]} 18. Rh1 {[%clk 0:02:56]}
18... Bd7 {[%clk 0:01:57.8]} 19. h4 {[%clk 0:02:55.3]} 19... fxg4 {[%clk
0:01:57.3]} 20. fxg4 {[%clk 0:02:56]} 20... Nf6 {[%clk 0:01:58]} 21. g5 {[%clk
0:02:52.3]} 21... Nh5 {[%clk 0:01:59.3]} 22. Bxh5 {[%clk 0:02:52.6]} 22... gxh5
{[%clk 0:02:01.2]} 23. Raf1 {[%clk 0:02:52.4]} 23... Kg7 {[%clk 0:02:02.4]} 24.
Rf6 {[%clk 0:02:48.1]} 24... Nh8 {[%clk 0:02:03.4]} 25. Rhf1 {[%clk 0:02:46.5]}
25... Ng6 {[%clk 0:02:03.5]} 26. Kg3 {[%clk 0:02:46.5]} 26... Qe7 {[%clk
0:01:59.2]} 27. Nd1 {[%clk 0:02:42]} 27... Bg4 {[%clk 0:01:47.4]} 28. Ne3 {[%clk
0:02:40.4]} 28... h6 {[%clk 0:01:31.4]} 29. Nxg4 {[%clk 0:02:34.1]} 29... hxg4
{[%clk 0:01:33.3]} 30. h5 {[%clk 0:02:32.2]} 30... Nf4 {[%clk 0:01:32.5]} 31.
Nxf4 {[%clk 0:02:31.4]} 31... exf4+ {[%clk 0:01:28.9]} 32. Qxf4 {[%clk
0:02:33.3]} 1-0

[Event "*** Titled Tuesday Blitz"]
[Site "Chess.com"]
[Date "2019.09.03"]
[Round "6"]
[White "Iustin106"]
[Black "alishersuleymenov"]
[Result "0-1"]
[WhiteElo "2490"]
[BlackElo "2637"]
[TimeControl "180+2"]
[EndTime "16:17:24 PDT"]
[Termination "alishersuleymenov won by resignation"]

1. d4 {[%clk 0:03:01.9]} 1... Nf6 {[%clk 0:02:58.6]} 2. c4 {[%clk 0:03:02.4]}
2... g6 {[%clk 0:02:59.5]} 3. Nc3 {[%clk 0:03:01.8]} 3... Bg7 {[%clk 0:03:01]}
4. e4 {[%clk 0:03:02.9]} 4... O-O {[%clk 0:03:02]} 5. Nf3 {[%clk 0:03:03.6]}
5... d6 {[%clk 0:03:03.4]} 6. h3 {[%clk 0:03:04.8]} 6... e5 {[%clk 0:03:03.6]}
7. d5 {[%clk 0:02:58.7]} 7... a5 {[%clk 0:03:04.2]} 8. Be3 {[%clk 0:02:59]} 8...
Na6 {[%clk 0:03:05.3]} 9. g4 {[%clk 0:02:59.9]} 9... Nc5 {[%clk 0:02:38.8]} 10.
Nd2 {[%clk 0:02:59.8]} 10... Nfd7 {[%clk 0:02:39.9]} 11. h4 {[%clk 0:02:50]}
11... f5 {[%clk 0:02:39.8]} 12. gxf5 {[%clk 0:02:42.9]} 12... gxf5 {[%clk
0:02:41.7]} 13. exf5 {[%clk 0:02:44]} 13... Nf6 {[%clk 0:02:42.4]} 14. Bxc5
{[%clk 0:02:42.3]} 14... dxc5 {[%clk 0:02:43.1]} 15. Bd3 {[%clk 0:02:38]} 15...
Bh6 {[%clk 0:02:31.9]} 16. Nde4 {[%clk 0:02:38]} 16... Bxf5 {[%clk 0:02:24.4]}
17. Qf3 {[%clk 0:02:00.2]} 17... Nxe4 {[%clk 0:02:04.7]} 18. Nxe4 {[%clk
0:01:51.1]} 18... Kh8 {[%clk 0:02:05.8]} 19. Nxc5 {[%clk 0:01:42.9]} 19... e4
{[%clk 0:02:06.2]} 20. Bxe4 {[%clk 0:01:27.9]} 20... Qe7 {[%clk 0:01:58.9]} 21.
Rg1 {[%clk 0:00:57.1]} 21... Rae8 {[%clk 0:01:53.9]} 22. Ne6 {[%clk 0:00:12]}
22... Bxe6 {[%clk 0:01:50.6]} 23. Qc3+ {[%clk 0:00:12.9]} 23... Bg7 {[%clk
0:01:51.6]} 24. Rxg7 {[%clk 0:00:13.8]} 24... Qxg7 {[%clk 0:01:53.5]} 25. Qxg7+
{[%clk 0:00:14.5]} 25... Kxg7 {[%clk 0:01:55.4]} 26. dxe6 {[%clk 0:00:15.5]}
26... Rxe6 {[%clk 0:01:57.3]} 27. f3 {[%clk 0:00:16.9]} 27... Rxf3 {[%clk
0:01:58.1]} 0-1

[Event "*** Titled Tuesday Blitz"]
[Site "Chess.com"]
[Date "2019.09.03"]
[Round "6"]
[White "Induwara_IM"]
[Black "tonyq11"]
[Result "1-0"]
[WhiteElo "2383"]
[BlackElo "2179"]
[TimeControl "180+2"]
[EndTime "16:17:42 PDT"]
[Termination "Induwara_IM won by checkmate"]

1. d4 {[%clk 0:03:01.9]} 1... Nf6 {[%clk 0:02:59.9]} 2. c4 {[%clk 0:03:02.9]}
2... e6 {[%clk 0:02:58.4]} 3. Nc3 {[%clk 0:03:04.1]} 3... d5 {[%clk 0:02:59.4]}
4. cxd5 {[%clk 0:03:03.3]} 4... exd5 {[%clk 0:03:00]} 5. Bg5 {[%clk 0:03:04.6]}
5... Be7 {[%clk 0:03:01]} 6. e3 {[%clk 0:03:05.7]} 6... c6 {[%clk 0:03:01.8]} 7.
Bd3 {[%clk 0:03:07.1]} 7... O-O {[%clk 0:03:03.1]} 8. Nge2 {[%clk 0:03:08.5]}
8... Nbd7 {[%clk 0:03:04.1]} 9. O-O {[%clk 0:03:09.8]} 9... Re8 {[%clk
0:03:04.8]} 10. f3 {[%clk 0:03:11.1]} 10... Nf8 {[%clk 0:03:02.2]} 11. Qd2
{[%clk 0:03:07.2]} 11... Ne6 {[%clk 0:02:59.6]} 12. Bh4 {[%clk 0:03:07.9]} 12...
Nh5 {[%clk 0:02:33.5]} 13. Bf2 {[%clk 0:03:08]} 13... Bg5 {[%clk 0:02:29.4]} 14.
g4 {[%clk 0:02:58.8]} 14... Nf6 {[%clk 0:02:21.3]} 15. h4 {[%clk 0:02:59.4]}
15... Nxg4 {[%clk 0:02:13.1]} 16. fxg4 {[%clk 0:02:54]} 16... Bxh4 {[%clk
0:02:13.8]} 17. Nf4 {[%clk 0:02:52.3]} 17... Bxf2+ {[%clk 0:01:35.1]} 18. Qxf2
{[%clk 0:02:50.3]} 18... Ng5 {[%clk 0:01:36.2]} 19. Qg3 {[%clk 0:02:44.5]} 19...
Qe7 {[%clk 0:01:31.7]} 20. Rae1 {[%clk 0:02:44.6]} 20... Qb4 {[%clk 0:01:19.7]}
21. Re2 {[%clk 0:02:30]} 21... Bd7 {[%clk 0:01:18.9]} 22. Nh3 {[%clk 0:02:25]}
22... Qe7 {[%clk 0:00:55.6]} 23. Bf5 {[%clk 0:02:17.5]} 23... Be6 {[%clk
0:00:42.6]} 24. e4 {[%clk 0:02:10.6]} 24... dxe4 {[%clk 0:00:34.5]} 25. Nxg5
{[%clk 0:02:09.3]} 25... Qxg5 {[%clk 0:00:33]} 26. Nxe4 {[%clk 0:02:10.2]} 26...
Qd8 {[%clk 0:00:20.4]} 27. Nd6 {[%clk 0:02:07.5]} 27... Re7 {[%clk 0:00:21]} 28.
Bxe6 {[%clk 0:02:01.1]} 28... Rxe6 {[%clk 0:00:19.8]} 29. Rxe6 {[%clk
0:01:58.2]} 29... fxe6 {[%clk 0:00:21.7]} 30. Rf7 {[%clk 0:01:57.1]} 30... Rc8
{[%clk 0:00:17.9]} 31. Qe5 {[%clk 0:01:55.7]} 31... Qxd6 {[%clk 0:00:16.2]} 32.
Qxg7# {[%clk 0:01:56.5]} 1-0